bitfinex/quotes_ETHUSD_20240718
["timestamp","ask_amount","ask_price","bid_price","bid_amount"]
[1721321771721,3.0,3419.7,3418.9,2.99088852]
[1721321772019,0.833636,3419.8,3419.0,2.92481]
[1721321772227,3.0,3419.9,3419.2,2.92464]
[1721321772427,1.35354991,3420.1,3419.5,2.92435]
[1721321772613,1.35354991,3420.6,3419.9,2.924]
[1721321772788,2.92345,3420.7,3419.6,2.98990216]
[1721321772989,0.96693699,3420.6,3419.6,2.92428]
[1721321773226,0.96693699,3420.6,3419.8,2.92409]
[1721321773428,9.66918991,3420.9,3419.9,2.92406]
[1721321773749,6.74591991,3420.9,3420.0,2.92396]
[1721321774025,2.92332,3420.8,3420.0,2.92396]
[1721321774230,1.35354991,3420.9,3420.4,2.9236]
[1721321774439,4.27642991,3421.3,3420.4,2.9236]
[1721321774594,2.095808,3421.2,3420.5,2.92349]
[1721321774790,2.4802,3421.5,3420.6,2.92343]
[1721321775103,2.92286,3421.3,3420.7,0.06496823]
[1721321775287,2.92286,3421.3,3420.5,2.92353]
[1721321775487,2.92286,3421.3,3420.6,0.06502766]
[1721321775733,0.832575,3421.2,3420.6,0.06502766]
[1721321777307,3.755525,3421.2,3420.6,0.06502766]
[1721321777510,3.755525,3421.2,3420.4,2.92363]
[1721321777707,0.832575,3421.2,3420.7,0.06496823]
[1721321778032,0.832575,3421.2,3420.5,2.92352]
[1721321778546,0.832575,3421.2,3420.6,2.92345]
[1721321778695,4.27621991,3421.6,3420.7,2.92334]
[1721321778899,5.92269,3421.5,3420.8,0.0649088]
[1721321779192,1.31987899,3421.4,3420.8,0.0649088]
[1721321780531,2.92295,3421.2,3420.4,2.92361]
[1721321781029,2.92314,3421.0,3420.5,0.06497099]
[1721321781193,2.92319,3421.0,3420.5,0.06497099]
[1721321781398,2.92311,3421.1,3420.2,2.92372]
[1721321781623,2.92311,3421.1,3420.6,0.06491156]
[1721321781818,2.92312,3421.0,3420.1,2.92382]
[1721321782018,0.584623,3420.9,3420.7,0.06485213]
[1721321782331,0.584623,3420.9,3420.1,2.92382]
[1721321782332,0.584623,3420.9,3420.8,0.0647927]
[1721321782693,3.507823,3420.9,3420.8,0.0647927]
[1721321782901,3.507823,3420.9,3420.1,2.92382]
[1721321783115,2.92335,3420.8,3420.2,0.06514932]
[1721321783294,2.9234,3420.7,3420.2,0.06514932]
[1721321783495,2.9234,3420.7,3419.9,2.92403]
[1721321783736,2.9234,3420.7,3420.0,0.06526822]
[1721321783896,0.3507823,3420.8,3420.0,5.91313822]
[1721321784397,1.171086,3423.7,3420.0,5.91313822]
[1721321784398,5.9227,3421.5,3420.0,0.06526822]
[1721321784601,5.9227,3421.5,3420.6,2.9234]
[1721321784993,5.9227,3421.5,3420.7,0.06476016]
[1721321785295,5.9227,3421.5,3420.7,2.98813016]
[1721321785502,1.01988099,3421.4,3420.7,2.98813016]
[1721321787131,1.35354991,3421.6,3420.8,2.92322]
[1721321787434,1.35354991,3421.6,3420.9,2.98779131]
[1721321787850,1.35354991,3421.6,3421.0,2.92311]
[1721321788048,1.35354991,3421.9,3421.2,2.92291]
[1721321788251,1.67457499,3421.9,3421.2,2.92291]
[1721321788463,2.92226,3422.0,3421.3,0.06435165]
[1721321788658,2.92226,3422.0,3421.2,2.92291]
[1721321789148,2.92226,3422.0,3421.3,0.06435165]
[1721321789552,2.92226,3422.0,3421.2,2.92291]
[1721321789940,1.35354991,3422.2,3421.4,2.92273]
[1721321790121,1.35354991,3422.2,3421.6,2.92255]
[1721321790521,1.35354991,3422.2,3421.7,0.06402026]
[1721321790845,1.35354991,3422.2,3421.7,2.98653026]
[1721321791751,3.0,3422.4,3421.7,2.98653026]
[1721321792116,3.0,3422.4,3421.7,0.06402026]
[1721321792469,3.0,3422.4,3421.5,2.92264]
[1721321792628,3.0,3422.4,3421.8,0.06392467]
[1721321792853,3.0,3422.4,3421.9,0.06386528]
[1721321792854,2.92219,3422.1,3421.9,0.06386528]
[1721321793048,2.92226,3422.0,3421.3,2.4353]
[1721321793253,2.92226,3422.0,3421.4,0.06416226]
[1721321793666,2.92226,3422.0,3420.9,2.3391]
[1721321793984,2.92226,3422.0,3421.2,2.92289]
[1721321794177,1.35354991,3422.3,3421.0,2.98749991]
[1721321794178,1.35354991,3422.3,3421.0,0.06439991]
[1721321794389,1.35354991,3422.3,3420.9,2.3391]
[1721321794390,1.35354991,3422.3,3421.4,2.92277]
[1721321794689,1.35354991,3422.3,3421.6,2.92259]
[1721321794891,5.92193,3422.4,3421.7,0.06398406]
[1721321795178,5.92193,3422.4,3421.2,2.92287]
[1721321795179,2.9223,3422.0,3421.2,2.92287]
[1721321795597,2.9223,3422.0,3421.3,0.06422167]
[1721321796671,2.92244,3421.8,3421.3,0.06422167]
[1721321796988,2.92244,3421.8,3421.0,2.9231]
[1721321797185,2.92244,3421.8,3421.4,0.06416226]
[1721321797353,2.92244,3421.8,3421.1,2.92303]
[1721321797554,2.92244,3421.8,3421.5,0.06410285]
[1721321797749,2.92235,3421.9,3421.1,2.92303]
[1721321797993,2.9223,3422.0,3421.6,0.06404346]
[1721321798196,2.9223,3422.0,3421.2,2.92294]
[1721321798364,2.9223,3422.0,3421.7,0.06398406]
[1721321798684,2.9223,3422.0,3421.8,0.06392467]
[1721321798886,5.3675,3422.4,3421.4,2.92272]
[1721321799192,5.3675,3422.4,3421.5,2.98678285]
[1721321799193,2.92207,3422.3,3421.5,2.98678285]
[1721321802829,2.92207,3422.3,3421.6,2.92259]
[1721321803123,3.0,3422.8,3422.0,2.92225]
[1721321803275,2.92167,3422.7,3422.1,0.06374651]
[1721321803612,5.27432,3422.9,3422.0,2.92219]
[1721321803823,2.92159,3422.8,3422.2,0.06364166]
[1721321803979,2.92159,3422.8,3422.0,2.92219]
[1721321803980,2.92159,3422.8,3422.1,0.06370104]
[1721321804181,2.92159,3422.8,3422.3,0.06358229]
[1721321804616,2.92159,3422.8,3422.0,2.92219]
[1721321804617,2.92159,3422.8,3422.0,5.84439]
[1721321804780,1.35354991,3423.0,3422.1,2.98060866]
[1721321804981,2.9215,3422.9,3422.1,3.0443097]
[1721321805183,2.0241849,3423.0,3422.1,2.98587104]
[1721321805415,2.92158,3422.8,3422.1,2.98587104]
[1721321806122,2.0241849,3423.0,3422.1,2.98587104]
[1721321806323,2.92158,3422.8,3422.1,0.06370104]
[1721321806607,2.92169,3422.7,3422.1,0.06370104]
[1721321806813,2.92169,3422.7,3421.9,2.92233]
[1721321807293,2.92169,3422.7,3422.0,0.06376042]
[1721321807494,2.92185,3422.5,3422.0,0.06376042]
[1721321807813,0.292185,3422.5,3421.6,5.4053]
[1721321807979,0.292185,3422.5,3422.1,0.06370104]
[1721321807980,2.92184,3422.5,3422.1,0.06370104]
[1721321808316,2.92184,3422.5,3421.7,2.92252]
[1721321808317,2.92184,3422.5,3422.2,0.06364166]
[1721321808500,2.92184,3422.5,3421.7,2.92252]
[1721321808817,2.92184,3422.5,3421.8,0.0638792]
[1721321809616,2.92202,3422.3,3421.8,0.0638792]
[1721321809828,2.92215,3422.2,3421.8,0.0638792]
[1721321810126,2.92215,3422.2,3421.9,0.06381981]
[1721321810280,2.92233,3422.0,3421.2,5.30884]
[1721321810623,2.92233,3422.0,3421.3,0.0641762]
[1721321810926,2.92219,3422.1,3421.3,2.9870362]
[1721321811276,2.92219,3422.1,3421.4,2.92277]
[1721321811480,2.92219,3422.1,3421.5,0.06404532]
[1721321813227,2.4001,3422.5,3421.5,0.06404532]
[1721321813228,2.92209,3422.2,3421.5,0.06404532]
[1721321813380,5.84426,3422.2,3421.5,0.06404532]
[1721321813708,2.92209,3422.2,3421.5,0.06404532]
[1721321813877,2.92223,3422.1,3421.5,0.06404532]
[1721321814819,2.92226,3422.0,3421.2,2.92291]
[1721321815017,2.92226,3422.0,3421.6,0.06397479]
[1721321815330,2.92226,3422.0,3421.7,0.06391539]
[1721321815525,2.92226,3422.0,3421.3,2.92286]
[1721321815824,2.92226,3422.0,3421.4,0.06409359]
[1721321818629,2.92209,3422.2,3421.4,0.06409359]
[1721321819119,2.9222,3422.1,3421.4,0.06409359]
[1721321819586,2.92231,3422.0,3421.4,0.06409359]
[1721321819782,2.92245,3421.8,3421.4,0.06409359]
[1721321820310,2.92261,3421.6,3420.9,2.92315]
[1721321820623,2.92282,3421.4,3420.7,2.92334]
[1721321821123,2.92282,3421.4,3420.8,0.06443988]
[1721321821627,2.92261,3421.6,3420.8,2.98769988]
[1721321821932,2.92248,3421.8,3421.0,2.92311]
[1721321822133,2.92248,3421.8,3421.1,5.2058]
[1721321822294,2.92248,3421.8,3421.2,0.064167]
[1721321822492,2.92229,3422.0,3421.2,2.987087]
[1721321823026,2.92237,3421.9,3421.2,0.064167]
[1721321823826,2.92223,3422.1,3421.3,2.92285]
[1721321824028,2.92227,3422.0,3421.3,2.92285]
[1721321824191,2.92227,3422.0,3421.4,0.0641048]
[1721321827553,7.27533991,3422.6,3421.7,2.92251]
[1721321827554,2.92191,3422.5,3421.7,2.92251]
[1721321827854,2.92191,3422.5,3421.4,0.0641048]
[1721321827855,2.92197,3422.4,3421.6,2.92258]
[1721321827995,2.92197,3422.4,3421.8,0.06386721]
[1721321828333,2.92197,3422.4,3421.9,0.06380782]
[1721321828731,2.92201,3422.3,3421.6,2.92258]
[1721321828943,2.92201,3422.3,3421.7,0.0639266]
[1721321829603,2.92189,3422.5,3421.7,2.9863966]
[1721321829814,2.88511849,3422.9,3422.0,2.92224]
[1721321829815,2.9216,3422.8,3422.0,2.92224]
[1721321830004,2.9216,3422.8,3421.8,2.3934]
[1721321830005,2.92167,3422.7,3421.9,2.92234]
[1721321830203,2.92167,3422.7,3422.1,0.06368905]
[1721321830412,5.30421,3422.9,3422.0,2.98600843]
[1721321830618,5.30421,3422.9,3422.2,0.06362967]
[1721321830803,5.30421,3422.9,3422.1,0.06368905]
[1721321831016,2.92158,3422.8,3422.0,2.92226]
[1721321831414,2.92158,3422.8,3422.1,0.06368905]
[1721321831643,2.92158,3422.8,3422.1,2.98585905]
[1721321831838,2.92158,3422.8,3422.1,2.92217]
[1721321832038,2.92158,3422.8,3422.2,0.06362967]
[1721321833023,7.27496991,3423.0,3422.2,0.06362967]
[1721321833218,2.92152,3422.9,3422.2,0.06362967]
[1721321833414,2.9216,3422.8,3422.2,0.06362967]
[1721321833885,2.92193,3422.4,3421.8,2.3934]
[1721321834156,2.92193,3422.4,3421.7,2.92251]
[1721321834317,2.92177,3422.6,3421.8,2.92237]
[1721321834521,2.92177,3422.6,3421.9,0.06361947]
[1721321834917,2.92177,3422.6,3421.4,2.4685]
[1721321834918,2.92175,3422.6,3421.4,2.4685]
[1721321835222,3.64912499,3422.8,3421.9,2.92233]
[1721321835223,5.84326,3422.8,3421.9,2.92233]
[1721321835417,2.92161,3422.8,3421.9,5.8446]
[1721321835733,2.92161,3422.8,3422.0,0.06356009]
[1721321835948,2.92161,3422.8,3422.0,2.98582009]
[1721321837658,2.92161,3422.8,3422.1,2.92217]
[1721321837843,2.92169,3422.7,3422.0,0.06356009]
[1721321838081,2.92176,3422.6,3422.1,0.0635007]
[1721321838295,0.96082799,3422.9,3421.8,2.4685]
[1721321838457,0.96082799,3422.9,3421.7,2.92247]
[1721321838458,2.92184,3422.5,3421.7,2.92247]
[1721321838660,5.34974,3422.5,3421.7,2.92247]
[1721321838881,5.34974,3422.5,3421.2,2.4807]
[1721321838882,2.92201,3422.3,3421.8,0.06367886]
[1721321839078,2.92218,3422.1,3421.3,2.92279]
[1721321839401,2.92218,3422.1,3421.2,2.4807]
[1721321839402,2.92218,3422.1,3421.4,2.92277]
[1721321839555,2.92201,3422.3,3421.4,2.98661109]
[1721321839759,2.92201,3422.3,3421.5,2.92267]
[1721321839961,4.27542991,3422.5,3421.4,0.06392109]
[1721321840194,4.27542991,3422.5,3421.8,2.92241]
[1721321840606,4.27542991,3422.5,3421.9,0.06365472]
[1721321840905,4.27542991,3422.5,3421.8,2.92241]
[1721321841268,4.27542991,3422.5,3421.9,0.06365472]
[1721321841467,4.27542991,3422.5,3421.8,2.92241]
[1721321841673,4.27542991,3422.5,3421.9,0.06365472]
[1721321842462,2.92188,3422.5,3421.9,0.06365472]
[1721321842994,2.92201,3422.3,3421.9,0.06365472]
[1721321843378,2.92201,3422.3,3421.6,2.9226]
[1721321843794,2.92201,3422.3,3421.7,0.06379019]
[1721321845493,2.92188,3422.5,3421.7,0.06379019]
[1721321845696,2.92188,3422.5,3421.8,2.92241]
[1721321845900,2.92188,3422.5,3421.9,0.06368533]
[1721321846280,5.84346,3422.7,3421.9,2.92232]
[1721321846481,2.92176,3422.6,3421.9,2.92232]
[1721321846760,2.92176,3422.6,3422.0,0.06362594]
[1721321846988,7.5695479,3422.9,3422.0,0.06362594]
[1721321847187,2.92176,3422.6,3422.0,0.06362594]
[1721321847600,2.92176,3422.6,3421.9,2.92235]
[1721321847779,2.92176,3422.6,3422.1,0.06356656]
[1721321848022,2.92167,3422.7,3422.0,0.06362594]
[1721321848198,2.92184,3422.5,3422.0,0.06362594]
[1721321848376,2.92184,3422.5,3421.7,2.92245]
[1721321848377,2.92184,3422.5,3421.7,5.8449]
[1721321848588,2.92184,3422.5,3422.1,0.06356656]
[1721321848895,2.92184,3422.5,3421.8,2.92242]
[1721321849371,5.84341,3422.7,3421.9,2.98603533]
[1721321849568,2.92167,3422.7,3422.0,2.92225]
[1721321849883,2.92167,3422.7,3422.1,0.06356656]
[1721321850489,4.27506991,3422.9,3422.1,2.54636656]
[1721321850688,4.27506991,3422.9,3422.2,2.92202]
[1721321851272,2.92152,3422.9,3422.3,0.0634478]
[1721321851509,2.92152,3422.9,3422.2,2.92202]
[1721321851871,2.92152,3422.9,3422.3,0.0634478]
[1721321852315,2.92152,3422.9,3422.2,2.92202]
[1721321852673,2.92152,3422.9,3422.3,0.0634478]
[1721321853206,2.92152,3422.9,3422.2,2.92202]
[1721321853596,2.92152,3422.9,3422.3,0.0634478]
[1721321853980,2.92152,3422.9,3422.2,2.92202]
[1721321854177,2.92141,3423.0,3422.3,2.922]
[1721321854479,2.92141,3423.0,3422.3,2.9854478]
[1721321854718,2.92141,3423.0,3422.3,0.0634478]
[1721321854876,1.35354991,3423.3,3422.3,0.12188517]
[1721321855077,2.92121,3423.3,3422.3,2.92198]
[1721321855313,2.92125,3423.2,3422.4,0.06338843]
[1721321856377,2.3912,3423.1,3422.4,0.06338843]
[1721321856570,2.9215,3422.9,3422.4,0.06338843]
[1721321856783,2.92143,3423.0,3422.0,2.92221]
[1721321856784,2.9216,3422.8,3422.0,2.92221]
[1721321857017,2.9216,3422.8,3422.5,0.06328733]
[1721321857214,2.9216,3422.8,3422.1,2.92216]
[1721321857517,2.9216,3422.8,3422.6,0.06322796]
[1721321857725,2.9216,3422.8,3422.1,2.92216]
[1721321857920,2.9215,3422.9,3422.7,0.0631686]
[1721321858091,5.84273,3423.1,3422.3,2.922]
[1721321858412,2.9214,3423.1,3422.3,2.922]
[1721321858574,5.8428,3423.1,3422.4,0.0633467]
[1721321859088,2.9214,3423.1,3422.3,2.922]
[1721321859293,2.92143,3423.0,3422.3,2.922]
[1721321859780,2.92132,3423.2,3422.4,2.9852067]
[1721321859979,2.92142,3423.0,3422.4,0.0633467]
[1721321860181,2.92154,3422.9,3422.1,2.3539]
[1721321860430,2.92154,3422.9,3422.5,0.06328733]
[1721321860715,2.92154,3422.9,3422.1,2.3539]
[1721321860875,2.92159,3422.8,3422.6,0.06322796]
[1721321861082,2.92154,3422.9,3422.1,2.3539]
[1721321861083,3.5888379,3422.7,3422.1,2.3539]
[1721321861279,2.92167,3422.7,3422.0,2.92222]
[1721321861477,2.92167,3422.7,3422.2,0.06346545]
[1721321861793,2.92167,3422.7,3422.3,0.06340607]
[1721321861976,2.92167,3422.7,3422.0,2.92221]
[1721321862177,2.92167,3422.7,3422.4,0.0633467]
[1721321862423,2.92167,3422.7,3422.0,2.92221]
[1721321862634,2.92167,3422.7,3422.5,0.06328733]
[1721321862804,2.92167,3422.7,3422.0,5.84438]
[1721321863138,0.828549,3423.0,3422.0,5.84438]
[1721321863139,2.92142,3423.0,3422.6,0.06322796]
[1721321863297,2.92142,3423.0,3422.3,2.92195]
[1721321863496,2.92142,3423.0,3422.7,0.0631686]
[1721321863728,2.92141,3423.0,3422.2,2.92202]
[1721321864152,2.92141,3423.0,3422.3,0.06340607]
[1721321864446,2.92163,3422.8,3422.3,0.06340607]
[1721321864604,2.92167,3422.7,3422.3,0.06340607]
[1721321864810,2.92167,3422.7,3421.9,5.8446]
[1721321864811,2.92167,3422.7,3421.9,2.9223]
[1721321865022,2.92175,3422.6,3422.4,0.0633467]
[1721321865238,2.92175,3422.6,3421.9,2.9223]
[1721321865530,2.92175,3422.6,3422.5,0.06328733]
[1721321865693,2.92185,3422.5,3421.8,2.4144]
[1721321865894,3.55056558,3422.6,3421.8,2.4144]
[1721321865895,2.92195,3422.4,3421.8,2.4144]
[1721321867640,1.35354991,3423.1,3422.1,2.521]
[1721321867793,1.35354991,3423.1,3422.4,2.92187]
[1721321868615,1.35354991,3423.1,3422.5,5.35657]
[1721321869260,5.92116,3423.3,3422.5,5.35657]
[1721321869855,2.92125,3423.2,3422.5,2.4348]
[1721321870215,5.92117,3423.3,3422.6,0.0631835]
[1721321870554,6.95548588,3423.3,3422.6,0.0631835]
[1721321871829,0.1474289,3423.4,3422.6,2.9849335]
[1721321872055,0.1474289,3423.4,3422.8,2.92157]
[1721321872448,0.1474289,3423.4,3422.9,0.06300542]
[1721321873157,0.1474289,3423.4,3422.6,2.92175]
[1721321873158,3.0685089,3423.4,3422.6,2.92175]
[1721321873363,3.0685089,3423.4,3422.7,2.92166]
[1721321873576,0.1474289,3423.4,3422.7,2.92166]
[1721321873719,0.1474289,3423.4,3422.8,0.06306849]
[1721321873919,0.1474289,3423.4,3422.8,2.98464849]
[1721321874919,0.1474289,3423.4,3422.8,0.06306849]
[1721321876120,0.88170978,3423.4,3422.8,0.06306849]
[1721321876321,0.88170978,3423.4,3422.8,2.98459849]
[1721321876554,0.1474289,3423.4,3422.8,2.98459849]
[1721321878316,0.1474289,3423.4,3423.0,2.92135]
[1721321878645,0.1474289,3423.4,3423.1,2.92126]
[1721321878830,0.1474289,3423.4,3423.2,2.92119]
[1721321879458,0.1474289,3423.4,3423.3,0.06269478]
[1721321879632,0.1474289,3423.4,3423.1,2.92127]
[1721321879964,0.1474289,3423.4,3423.3,0.06269478]
[1721321880336,0.1474289,3423.4,3423.0,2.92136]
[1721321880541,0.1474289,3423.4,3423.3,0.06269478]
[1721321880730,0.1474289,3423.4,3423.1,2.92131]
[1721321880931,0.1474289,3423.4,3423.3,0.06269478]
[1721321881143,0.1474289,3423.4,3423.2,0.06275412]
[1721321881424,0.1474289,3423.4,3423.3,0.06269478]
[1721321881740,0.1474289,3423.4,3422.8,2.9215]
[1721321881972,0.1474289,3423.4,3423.3,0.06269478]
[1721321882181,0.1474289,3423.4,3422.9,2.92143]
[1721321882380,0.1474289,3423.4,3423.3,0.06269478]
[1721321882547,0.1474289,3423.4,3422.9,2.92143]
[1721321882756,0.1474289,3423.4,3423.3,0.06269478]
[1721321883198,0.1474289,3423.4,3422.8,2.9215]
[1721321883386,0.1474289,3423.4,3423.3,0.06269478]
[1721321883690,0.1474289,3423.4,3422.8,2.9215]
[1721321883864,0.1474289,3423.4,3423.3,0.06267438]
[1721321884060,0.1474289,3423.4,3422.9,2.92147]
[1721321884266,0.1474289,3423.4,3423.3,0.06267438]
[1721321884465,0.1474289,3423.4,3422.9,2.92147]
[1721321884668,0.1474289,3423.4,3423.3,0.06267438]
[1721321884895,0.1474289,3423.4,3422.9,2.92147]
[1721321885079,0.1474289,3423.4,3423.3,0.06267438]
[1721321885248,0.1474289,3423.4,3422.9,2.92147]
[1721321885455,0.1474289,3423.4,3423.3,0.06267438]
[1721321885854,0.1474289,3423.4,3422.9,2.92147]
[1721321886090,0.1474289,3423.4,3423.3,0.06267438]
[1721321886404,0.1474289,3423.4,3422.7,2.92159]
[1721321886605,3.0684989,3423.4,3423.3,0.06267438]
[1721321886755,3.80279378,3423.4,3423.3,0.06267438]
[1721321886957,3.80279378,3423.4,3422.7,2.92159]
[1721321887156,3.0684989,3423.4,3422.7,2.92159]
[1721321887366,3.0684989,3423.4,3422.8,2.98454112]
[1721321887796,0.1474289,3423.4,3422.8,2.98454112]
[1721321888297,0.1474289,3423.4,3422.8,2.98449112]
[1721321888595,0.1474289,3423.4,3423.0,2.92139]
[1721321888795,0.1474289,3423.4,3423.0,2.92135]
[1721321889100,0.1474289,3423.4,3423.3,2.92115]
[1721321889457,0.1474289,3423.4,3423.3,2.98380212]
[1721321890054,0.1474289,3423.4,3423.3,0.06265212]
[1721321890595,0.1474289,3423.4,3423.1,2.92126]
[1721321890766,0.1474289,3423.4,3423.3,0.06262616]
[1721321891168,0.1474289,3423.4,3423.1,2.92126]
[1721321891380,0.1474289,3423.4,3423.3,0.06262616]
[1721321891572,0.1474289,3423.4,3423.2,0.0626855]
[1721321891774,0.1474289,3423.4,3423.3,0.06262616]
[1721321892208,0.1474289,3423.4,3423.2,2.92122]
[1721321892413,0.1474289,3423.4,3423.3,0.06262616]
[1721321892897,0.1474289,3423.4,3423.3,2.98377616]
[1721321893099,0.1474289,3423.4,3423.3,2.92115]
[1721321893311,0.1474289,3423.4,3423.3,2.98377616]
[1721321893808,0.1474289,3423.4,3423.3,0.06262616]
[1721321894104,0.1474289,3423.4,3423.1,2.92126]
[1721321894412,0.1474289,3423.4,3423.2,0.0626855]
[1721321895180,0.1474289,3423.4,3423.1,2.92132]
[1721321895504,0.1474289,3423.4,3423.3,2.98377616]
[1721321895705,0.1474289,3423.4,3423.3,2.92115]
[1721321896006,0.1474289,3423.4,3423.3,2.98377616]
[1721321896387,0.1474289,3423.4,3423.3,0.06262616]
[1721321896764,0.1474289,3423.4,3423.0,2.92136]
[1721321896980,0.1474289,3423.4,3423.3,0.06262616]
[1721321897181,0.1474289,3423.4,3422.7,2.411]
[1721321897182,5.28445,3423.3,3422.7,2.92163]
[1721321897632,2.92129,3423.2,3422.5,2.92181]
[1721321897788,2.92148,3423.0,3422.2,2.92208]
[1721321897987,2.92137,3423.1,3422.3,2.92197]
[1721321898242,2.92137,3423.1,3422.3,5.8439]
[1721321898405,2.92137,3423.1,3422.3,2.92193]
[1721321898813,5.28447,3423.3,3422.3,2.92193]
[1721321898983,5.28447,3423.3,3422.5,2.92178]
[1721321899619,5.28447,3423.3,3422.3,5.84387]
[1721321899620,2.9213,3423.2,3422.3,5.84387]
[1721321899920,2.9213,3423.2,3422.4,2.92191]
[1721321900119,2.9213,3423.2,3422.4,2.98510186]
[1721321901684,5.28447,3423.3,3422.4,2.98510186]
[1721321901685,2.3633,3423.3,3422.6,2.92174]
[1721321902130,2.3633,3423.3,3422.8,2.92157]
[1721321902421,2.3633,3423.3,3422.9,0.06289505]
[1721321902623,0.1474289,3423.4,3422.9,0.06289505]
[1721321903287,3.0684989,3423.4,3422.9,0.06289505]
[1721321903481,2.92116,3423.3,3422.6,2.92169]
[1721321903819,2.92116,3423.3,3422.4,2.9219]
[1721321903820,2.92137,3423.1,3422.4,2.9219]
[1721321903993,2.4851,3423.2,3422.4,2.9219]
[1721321904201,5.40639,3423.2,3422.5,0.0631566]
[1721321904542,5.40639,3423.2,3422.5,2.9849766]
[1721321904842,0.1474289,3423.4,3422.7,2.92161]
[1721321904843,3.0684989,3423.4,3422.7,2.92161]
[1721321905198,3.0684989,3423.4,3422.8,0.06297852]
[1721321906038,0.1474289,3423.4,3422.8,2.98450852]
[1721321906641,0.1474289,3423.4,3422.8,2.98447852]
[1721321907514,3.0685089,3423.4,3422.8,0.06297852]
[1721321907698,3.0685089,3423.4,3422.6,2.92173]
[1721321907699,0.1474289,3423.4,3422.7,2.92165]
[1721321907898,0.1474289,3423.4,3422.9,0.06291916]
[1721321908147,0.1474289,3423.4,3422.8,0.06297852]
[1721321908498,0.1474289,3423.4,3423.0,0.06285981]
[1721321908723,3.0685789,3423.4,3422.9,0.06291916]
[1721321908920,3.0685789,3423.4,3423.1,0.06280046]
[1721321909126,0.1474289,3423.4,3423.0,0.06285981]
[1721321909299,0.1474289,3423.4,3422.7,2.92167]
[1721321909507,0.1474289,3423.4,3423.1,0.06280046]
[1721321909715,0.1474289,3423.4,3423.1,2.92132]
[1721321910037,0.1474289,3423.4,3423.2,0.06274112]
[1721321910346,0.1474289,3423.4,3423.2,2.98396112]
[1721321910503,0.1474289,3423.4,3423.2,0.06274112]
[1721321910904,0.1474289,3423.4,3423.0,2.92134]
[1721321911145,0.1474289,3423.4,3423.3,0.06265304]
[1721321911644,0.1474289,3423.4,3423.0,2.92134]
[1721321911938,0.1474289,3423.4,3423.3,0.06265304]
[1721321912455,0.1474289,3423.4,3423.1,2.92132]
[1721321912606,0.1474289,3423.4,3423.3,0.06265304]
[1721321912806,0.1474289,3423.4,3423.1,2.92132]
[1721321913016,0.1474289,3423.4,3423.2,0.06271239]
[1721321914424,0.1474289,3423.4,3423.2,2.98394239]
[1721321916035,0.1474289,3423.4,3423.3,2.92115]
[1721321916405,0.1474289,3423.4,3423.3,2.98380304]
[1721321916608,0.1474289,3423.4,3423.3,0.06265304]
[1721321916802,0.1474289,3423.4,3423.2,2.92118]
[1721321916997,0.1474289,3423.4,3423.3,0.06265304]
[1721321917242,0.1474289,3423.4,3423.2,2.92118]
[1721321917625,0.1474289,3423.4,3423.3,0.06265304]
[1721321917818,0.1474289,3423.4,3423.2,2.92118]
[1721321918019,0.1474289,3423.4,3423.3,0.06265304]
[1721321918228,0.1474289,3423.4,3423.3,2.92115]
[1721321918432,0.1474289,3423.4,3423.3,2.98380304]
[1721321926338,0.1474289,3423.4,3423.3,4.02980304]
[1721321927472,0.1474289,3423.4,3423.3,0.06265304]
[1721321927857,0.1474289,3423.4,3423.2,1.046]
[1721321928066,0.1474289,3423.4,3423.3,0.06262708]
[1721321928438,0.1474289,3423.4,3423.2,3.96724]
[1721321928765,0.1474289,3423.4,3423.3,0.06262708]
[1721321929164,0.1474289,3423.4,3423.2,3.96724]
[1721321929361,0.1474289,3423.4,3423.3,0.06262708]
[1721321929768,0.1474289,3423.4,3423.2,1.046]
[1721321929969,0.1474289,3423.4,3423.3,0.06262708]
[1721321930678,0.1474289,3423.4,3423.2,1.046]
[1721321930885,0.1474289,3423.4,3423.3,0.06262708]
[1721321931392,0.1474289,3423.4,3423.2,1.046]
[1721321931547,0.1474289,3423.4,3423.3,0.06262708]
[1721321931956,0.1474289,3423.4,3423.2,1.046]
[1721321932176,0.1474289,3423.4,3423.3,0.06262708]
[1721321932880,0.1474289,3423.4,3423.2,1.046]
[1721321933067,0.1474289,3423.4,3423.3,0.06262708]
[1721321933579,0.1474289,3423.4,3423.2,1.046]
[1721321933770,0.1474289,3423.4,3423.3,0.06262708]
[1721321934076,0.1474289,3423.4,3423.2,3.96723]
[1721321934579,0.1474289,3423.4,3423.3,0.06262708]
[1721321934961,0.1474289,3423.4,3423.2,3.96717]
[1721321935164,0.1474289,3423.4,3423.3,0.06262708]
[1721321935462,0.1474289,3423.4,3423.2,3.96717]
[1721321935794,0.1474289,3423.4,3423.3,0.06262708]
[1721321936079,0.1474289,3423.4,3423.2,3.96717]
[1721321936279,0.1474289,3423.4,3423.3,0.06262708]
[1721321936779,0.1474289,3423.4,3423.2,3.96717]
[1721321936981,0.1474289,3423.4,3423.3,2.98377708]
[1721321938255,0.1474289,3423.4,3423.3,0.06262708]
[1721321938779,0.1474289,3423.4,3423.2,3.96723]
[1721321938987,0.1474289,3423.4,3423.3,0.06263544]
[1721321939382,0.1474289,3423.4,3423.2,3.96717]
[1721321939552,0.1474289,3423.4,3423.3,0.06263544]
[1721321940090,0.1474289,3423.4,3423.2,3.96717]
[1721321940300,0.1474289,3423.4,3423.3,2.98378544]
[1721321941052,0.1474289,3423.4,3423.3,0.06263544]
[1721321941294,0.1474289,3423.4,3422.9,6.88887]
[1721321941466,0.1474289,3423.4,3423.3,0.06263544]
[1721321941669,0.1474289,3423.4,3422.9,1.046]
[1721321941864,0.1474289,3423.4,3423.3,0.06263544]
[1721321942067,0.1474289,3423.4,3422.9,1.046]
[1721321942267,0.1474289,3423.4,3423.3,0.06263544]
[1721321942468,0.1474289,3423.4,3422.9,3.96747]
[1721321942674,0.1474289,3423.4,3423.3,0.06263544]
[1721321942874,0.1474289,3423.4,3422.9,3.96747]
[1721321943198,0.1474289,3423.4,3423.3,0.06263544]
[1721321943355,0.1474289,3423.4,3423.1,3.96731]
[1721321943561,0.1474289,3423.4,3423.3,0.06263544]
[1721321943761,0.1474289,3423.4,3423.1,3.96731]
[1721321943762,0.1474289,3423.4,3423.2,0.06269479]